bitfinex-derivatives/quotes_SOLF0:USTF0_20250530
["timestamp","ask_amount","ask_price","bid_price","bid_amount"]
[1748609077803,6.1209,163.33,163.31,6.16238293]
[1748609078003,0.04568245,163.34,163.32,6.1211]
[1748609078504,0.04568245,163.34,163.31,0.04098293]
[1748609078703,0.04568245,163.34,163.31,6.16238293]
[1748609079005,0.04568245,163.34,163.31,0.04098293]
[1748609079200,0.04568245,163.34,163.31,6.16238293]
[1748609080002,6.1209,163.33,163.31,6.16238293]
[1748609080201,0.04568245,163.34,163.32,6.1212]
[1748609080604,0.04568245,163.34,163.31,0.04098293]
[1748609080801,0.04568245,163.34,163.33,6.1208]
[1748609081198,21.0640266,163.44,163.33,6.1208]
[1748609081199,36.7767,163.45,163.33,6.7656266]
[1748609081397,38.7366,163.45,163.33,6.7656266]
[1748609081807,45.5022266,163.45,163.35,6.1201]
[1748609082300,6.1186,163.39,163.38,0.04463364]
[1748609084005,34.76,163.4,163.31,34.76]
[1748609084006,6.12,163.36,163.31,34.76]
[1748609084413,6.12,163.36,163.33,6.1206]
[1748609084710,34.76,163.4,163.28,10.9069266]
[1748609085011,6.1203,163.35,163.33,0.03966995]
[1748609086311,6.1205,163.34,163.33,0.03966995]
[1748609086506,0.04105946,163.36,163.33,0.03966995]
[1748609086905,6.1203,163.35,163.33,0.03966995]
[1748609087307,34.80105946,163.36,163.33,0.03966995]
[1748609087511,6.1205,163.34,163.33,0.03966995]
[1748609089903,40.92115946,163.36,163.33,0.03966995]
[1748609090108,34.80105946,163.36,163.33,0.03966995]
[1748609090503,40.92095946,163.36,163.33,6.16036995]
[1748609091005,6.1202,163.35,163.33,0.03966995]
[1748609091601,40.92085946,163.36,163.33,0.03966995]
[1748609091804,34.80105946,163.36,163.33,0.03966995]
[1748609092315,34.80105946,163.36,163.33,6.16016995]
[1748609092613,40.92095946,163.36,163.33,0.03966995]
[1748609092812,40.92095946,163.36,163.34,6.1204]
[1748609093013,34.80105946,163.36,163.34,6.1204]
[1748609094014,40.92085946,163.36,163.34,6.1204]
[1748609094208,40.92085946,163.36,163.33,6.16036995]
[1748609094611,40.92085946,163.36,163.33,0.03966995]
[1748609094811,40.92085946,163.36,163.34,6.1204]
[1748609095114,40.92085946,163.36,163.33,0.03966995]
[1748609095310,34.80105946,163.36,163.33,6.16016995]
[1748609095511,34.80105946,163.36,163.33,0.03966995]
[1748609096119,40.92095946,163.36,163.34,6.1202]
[1748609096311,34.80105946,163.36,163.33,0.03966995]
[1748609096509,0.04105946,163.36,163.33,0.03966995]
[1748609096710,0.04105946,163.36,163.34,6.1202]
[1748609096910,0.04105946,163.36,163.33,0.03966995]
[1748609097717,6.16075946,163.36,163.34,6.1202]
[1748609099411,6.1204,163.35,163.33,0.03966995]
[1748609099908,6.16095946,163.36,163.33,6.16016995]
[1748609100510,6.1202,163.35,163.33,6.16016995]
[1748609100710,0.04105946,163.36,163.34,6.1205]
[1748609100911,0.04105946,163.36,163.33,0.03966995]
[1748609101116,0.04105946,163.36,163.34,6.1203]
[1748609101621,0.04105946,163.36,163.35,6.1201]
[1748609102719,0.04105946,163.36,163.34,6.1203]
[1748609102918,0.04105946,163.36,163.33,0.03966995]
[1748609104214,6.1205,163.34,163.33,0.03966995]
[1748609104616,6.1224,163.29,163.25,34.64]
[1748609104824,6.1224,163.29,163.24,125.2]
[1748609105016,6.1224,163.29,163.26,6.1232]
[1748609105519,6.16777893,163.29,163.26,6.16707685]
[1748609105910,6.1229,163.28,163.26,6.16707685]
[1748609106116,6.1229,163.28,163.26,0.04387685]
[1748609106317,0.04537893,163.29,163.26,0.04387685]
[1748609106515,6.1227,163.28,163.26,0.04387685]
[1748609107710,6.1231,163.27,163.26,0.04387685]
[1748609108619,0.04537893,163.29,163.26,0.04387685]
[1748609110227,0.04537893,163.29,163.28,6.1227]
[1748609112017,0.04537893,163.29,163.27,6.1229]
[1748609113122,0.04537893,163.29,163.28,6.1227]
[1748609113527,34.64,163.35,163.27,6.7656266]
[1748609113819,40.7603,163.35,163.32,6.121]
[1748609114526,40.7603,163.35,163.32,6.16601337]
[1748609114527,40.80412803,163.35,163.32,6.16601337]
[1748609114924,34.68392803,163.35,163.32,0.04501337]
[1748609115427,6.1205,163.34,163.32,0.04501337]
[1748609115624,34.68392803,163.35,163.32,0.04501337]
[1748609116017,6.1208,163.33,163.32,0.04501337]
[1748609121323,8.1567,163.34,163.32,0.04501337]
[1748609121520,34.68392803,163.35,163.32,0.04501337]
[1748609121719,34.68392803,163.35,163.33,6.1208]
[1748609121929,0.04392803,163.35,163.33,6.1208]
[1748609122326,0.04392803,163.35,163.32,6.16611337]
[1748609122525,0.04392803,163.35,163.32,0.04501337]
[1748609122925,0.04392803,163.35,163.32,6.16601337]
[1748609123121,6.16402803,163.35,163.32,6.16601337]
[1748609124532,6.16402803,163.35,163.33,6.1208]
[1748609125432,6.16402803,163.35,163.32,6.16611337]
[1748609125733,6.1206,163.34,163.32,6.16611337]
[1748609126027,0.04392803,163.35,163.32,6.16611337]
[1748609126431,0.04392803,163.35,163.32,0.04501337]
[1748609126634,6.1208,163.33,163.32,0.04501337]
[1748609130543,40.7606,163.34,163.32,0.04501337]
[1748609130737,40.7606,163.34,163.32,6.16621337]
[1748609131037,40.7606,163.34,163.32,0.04501337]
[1748609131230,6.1208,163.33,163.32,0.04501337]
[1748609131533,34.64,163.34,163.32,0.04501337]
[1748609132928,40.7607,163.34,163.32,6.16621337]
[1748609133135,34.64,163.34,163.32,0.04501337]
[1748609133333,0.04392803,163.35,163.32,0.04501337]
[1748609133738,6.16422803,163.35,163.33,6.1206]
[1748609134440,0.04392803,163.35,163.32,0.04501337]
[1748609134836,0.04392803,163.35,163.33,6.1205]
[1748609135242,6.16402803,163.35,163.33,6.1205]
[1748609135537,0.04392803,163.35,163.32,0.04501337]
[1748609136536,0.04392803,163.35,163.34,6.1205]
[1748609137335,0.04392803,163.35,163.32,0.04501337]
[1748609137938,0.04392803,163.35,163.33,6.1205]
[1748609138334,6.16412803,163.35,163.33,6.1205]
[1748609138742,0.04392803,163.35,163.34,6.1205]
[1748609139345,0.04392803,163.35,163.33,6.1208]
[1748609140434,6.16402803,163.35,163.33,6.1208]
[1748609140639,0.04392803,163.35,163.33,6.1208]
[1748609142540,6.16412803,163.35,163.33,6.1208]
[1748609142743,6.16412803,163.35,163.32,6.16621337]
[1748609142947,0.04392803,163.35,163.32,0.04501337]
[1748609143144,6.1207,163.34,163.32,0.04501337]
[1748609143547,0.04392803,163.35,163.32,0.04501337]
[1748609144044,0.04392803,163.35,163.34,6.1205]
[1748609149763,6.16432803,163.35,163.32,0.04501337]
[1748609149962,0.04392803,163.35,163.32,0.04501337]
[1748609150359,6.1208,163.33,163.32,0.04501337]
[1748609151257,0.04392803,163.35,163.32,0.04501337]
[1748609151763,6.16422803,163.35,163.32,0.04501337]
[1748609152056,0.04392803,163.35,163.32,0.04501337]
[1748609153056,6.1206,163.34,163.32,6.16601337]
[1748609153855,0.04392803,163.35,163.32,0.04501337]
[1748609155157,0.04392803,163.35,163.34,6.1204]
[1748609158457,38.645,163.43,163.38,6.1188]
[1748609159060,6.1183,163.4,163.38,6.1188]
[1748609159261,38.645,163.43,163.37,6.1191]
[1748609159462,38.645,163.43,163.33,34.52]
[1748609159659,6.1188,163.39,163.36,0.04436775]
[1748609159974,6.1188,163.39,163.36,6.16376775]
[1748609160263,6.1188,163.39,163.36,0.04436775]
[1748609160676,6.1188,163.39,163.37,6.1191]
[1748609161067,6.1191,163.38,163.36,0.04436775]
[1748609161369,6.1191,163.38,163.36,6.16386775]
[1748609162267,6.1193,163.37,163.36,0.04436775]
[1748609164771,6.1191,163.38,163.36,0.04436775]
[1748609165174,36.5,163.39,163.36,0.04436775]
[1748609165875,6.1193,163.37,163.36,0.04436775]
[1748609166575,36.5,163.39,163.27,38.4563]
[1748609166776,2.1321,163.36,163.29,124.72]
[1748609166967,2.1321,163.36,163.3,6.1219]
[1748609167164,6.1214,163.32,163.27,38.4563]
[1748609167369,34.36,163.35,163.27,34.36]
[1748609167572,0.04286807,163.33,163.29,0.04706947]
[1748609167772,6.1216,163.31,163.29,0.04706947]
[1748609167967,0.04286807,163.33,163.29,6.16916947]
[1748609168165,0.04286807,163.33,163.29,0.04706947]
[1748609168365,6.1219,163.3,163.29,0.04706947]
[1748609169073,6.1217,163.31,163.29,0.04706947]
[1748609169370,0.04286807,163.33,163.29,0.04706947]
[1748609169869,0.04286807,163.33,163.29,6.81269607]
[1748609170075,0.04286807,163.33,163.32,6.1212]
[1748609176482,0.04286807,163.33,163.32,12.8868266]
[1748609177275,0.04286807,163.33,163.32,6.1212]
[1748609183286,34.38,163.4,163.36,6.1194]
[1748609183486,2.1156,163.42,163.35,6.7656266]
[1748609183685,6.1181,163.41,163.35,6.7656266]
[1748609183885,565.0535,163.44,163.37,6.1191]
[1748609184188,565.0535,163.44,163.34,159.0]
[1748609184393,0.03552468,163.41,163.37,0.04492973]
[1748609184689,6.119,163.38,163.37,0.04492973]
[1748609186587,6.1205,163.34,163.31,306.40091947]
[1748609186980,38.4218,163.4,163.32,6.121]
[1748609187379,38.4218,163.4,163.31,147.42091947]
[1748609187691,0.04238254,163.37,163.34,0.04374237]
[1748609187890,6.12,163.36,163.34,0.04374237]
[1748609188089,0.04238254,163.37,163.34,6.16414237]
[1748609188491,6.16198254,163.37,163.34,6.16414237]
[1748609188692,0.04238254,163.37,163.35,6.1199]
[1748609189089,0.04238254,163.37,163.36,6.1197]
[1748609193493,6.1162,163.46,163.36,34.36]
[1748609193695,6.1162,163.46,163.39,6.7656266]
[1748609193899,34.36,163.48,163.4,124.54]
[1748609194098,6.1158,163.47,163.4,124.54]
[1748609194401,0.03807188,163.45,163.43,6.1168]
[1748609194794,0.03807188,163.45,163.42,0.04672644]
[1748609195092,0.03807188,163.45,163.44,6.1167]
[1748609197291,38.2958,163.51,163.42,6.81235304]
[1748609197292,6.1147,163.5,163.42,6.81235304]
[1748609197499,36.3463,163.51,163.42,6.81235304]
[1748609197898,36.3463,163.51,163.47,6.1153]
[1748609198293,36.3463,163.51,163.47,6.15838576]
[1748609199106,36.3463,163.51,163.47,0.04308576]
[1748609199502,6.1152,163.48,163.47,0.04308576]
[1748609200005,6.115,163.49,163.47,0.04308576]
[1748609200403,36.3463,163.51,163.47,0.04308576]
[1748609200602,6.1147,163.5,163.47,0.04308576]
[1748609201303,2.1063,163.51,163.47,0.04308576]
[1748609201506,2.1063,163.51,163.47,124.48308576]
[1748609202500,6.1147,163.5,163.47,130.59838576]
[1748609203109,2.1063,163.51,163.47,124.48308576]
[1748609203110,6.1149,163.49,163.47,124.48308576]
[1748609203806,6.1152,163.48,163.47,124.48308576]
[1748609204707,6.1152,163.48,163.47,0.04308576]
[1748609204907,34.22,163.5,163.4,34.22]
[1748609205103,36.1873,163.5,163.41,124.4]
[1748609205408,36.1873,163.5,163.4,34.22]
[1748609205607,36.1873,163.5,163.41,124.4]
[1748609206107,6.117,163.44,163.41,6.1178]
[1748609206305,0.04148041,163.47,163.41,6.1178]
[1748609206306,0.04148041,163.47,163.41,6.1589894]
[1748609206507,6.1171,163.43,163.41,0.0411894]
[1748609206809,0.04308576,163.44,163.41,0.0411894]
[1748609206997,6.15998576,163.44,163.41,0.0411894]
[1748609207406,0.04308576,163.44,163.41,0.0411894]
[1748609207705,0.04308576,163.44,163.43,6.1171]
[1748609209715,2.1063,163.51,163.43,6.7656266]
[1748609210119,6.1155,163.48,163.43,6.7656266]
[1748609210411,1.9758,163.58,163.43,6.7656266]
[1748609210616,38.3587,163.57,163.49,0.04280882]
[1748609210811,6.1138,163.52,163.49,6.15740882]
[1748609211017,38.3587,163.57,163.49,0.04280882]
[1748609211714,6.1138,163.52,163.49,0.04280882]
[1748609211914,38.3587,163.57,163.49,0.04280882]
[1748609212915,38.3587,163.57,163.49,6.15740882]
[1748609212916,6.114,163.52,163.49,6.15740882]
[1748609213216,6.114,163.52,163.49,6.15750882]
[1748609213909,6.114,163.52,163.49,0.04280882]
[1748609214510,6.114,163.52,163.49,6.15750882]
[1748609216119,6.114,163.52,163.5,6.1144]
[1748609216618,6.114,163.52,163.49,0.04280882]
[1748609217007,6.1141,163.51,163.49,6.15750882]
[1748609217210,38.3587,163.57,163.49,6.15750882]
[1748609217817,6.1139,163.52,163.49,6.15750882]
[1748609218920,6.1139,163.52,163.49,0.04280882]
[1748609219316,6.1139,163.52,163.49,6.15740882]
[1748609219921,6.1139,163.52,163.49,6.15750882]
[1748609220619,6.1139,163.52,163.5,6.1144]
[1748609220822,38.3587,163.57,163.49,0.04280882]
[1748609221017,34.22,163.56,163.52,6.1135]
[1748609221324,34.22,163.56,163.52,6.16004397]
[1748609221325,6.1127,163.55,163.52,6.16004397]
[1748609221519,34.22,163.56,163.52,6.16004397]
[1748609222026,6.1132,163.54,163.52,0.04654397]
[1748609222626,6.1134,163.53,163.52,0.04654397]
[1748609222820,34.22,163.56,163.46,34.22]
[1748609223124,6.1147,163.5,163.47,6.1153]
[1748609223423,34.22,163.56,163.48,6.1149]
[1748609223623,6.1145,163.5,163.48,6.1149]
[1748609223923,6.1145,163.5,163.47,6.15484449]
[1748609224223,6.16056765,163.51,163.47,0.03934449]
[1748609224725,6.16076765,163.51,163.48,6.1151]
[1748609224918,0.04626765,163.51,163.48,6.1151]
[1748609225320,0.04626765,163.51,163.47,6.15484449]
[1748609225621,0.04626765,163.51,163.47,0.03934449]
[1748609225821,6.1147,163.5,163.47,0.03934449]
[1748609226021,0.04626765,163.51,163.47,0.03934449]
[1748609226424,6.1148,163.5,163.47,6.15494449]
[1748609228022,6.1148,163.5,163.48,6.1152]
[1748609228223,6.1148,163.5,163.47,0.03934449]
[1748609228422,6.1148,163.5,163.47,6.15474449]
[1748609228826,6.1148,163.5,163.47,0.03934449]
[1748609230220,6.115,163.49,163.47,0.03934449]
[1748609230624,6.1146,163.5,163.48,6.1152]
[1748609231125,0.04626765,163.51,163.47,0.03934449]
[1748609231332,6.16046765,163.51,163.48,6.1149]
[1748609231621,0.04626765,163.51,163.47,0.03934449]
[1748609231826,0.04626765,163.51,163.5,6.1145]
[1748609232923,0.04626765,163.51,163.49,6.1148]
[1748609233321,0.04626765,163.51,163.47,0.03934449]
[1748609233725,0.04626765,163.51,163.5,6.1145]
[1748609239146,0.04626765,163.51,163.47,34.13934449]
[1748609239338,0.04626765,163.51,163.47,0.03934449]
[1748609239638,0.04626765,163.51,163.47,6.15484449]
[1748609240033,6.1151,163.49,163.47,6.15484449]
[1748609243144,6.1152,163.48,163.47,0.03934449]
[1748609247047,34.14626765,163.51,163.47,0.03934449]
[1748609247248,0.04626765,163.51,163.47,0.03934449]
[1748609247843,6.1148,163.5,163.47,6.15484449]
[1748609249151,6.1148,163.5,163.47,0.03934449]
[1748609249450,6.1149,163.49,163.47,0.03934449]
[1748609250173,6.1149,163.49,163.47,6.15474449]
[1748609250644,6.1146,163.5,163.47,6.15474449]
[1748609251143,6.16056765,163.51,163.48,6.1152]
[1748609252848,0.04626765,163.51,163.47,0.03934449]
[1748609253852,0.04626765,163.51,163.5,6.1145]
[1748609260962,6.1124,163.56,163.54,6.1129]
[1748609261159,6.1124,163.56,163.49,33.98]
[1748609261562,6.1124,163.56,163.53,6.1131]
[1748609261964,6.1124,163.56,163.53,6.15345211]
[1748609262267,6.1126,163.55,163.53,6.15345211]
[1748609263170,6.1124,163.56,163.53,6.15345211]
[1748609263470,2.0543,163.57,163.53,6.15345211]
[1748609263863,6.1126,163.56,163.53,6.15345211]
[1748609264471,6.1127,163.55,163.53,6.15345211]
[1748609265679,6.1127,163.55,163.53,0.04035211]
[1748609265871,6.1123,163.56,163.53,0.04035211]
[1748609266176,2.0543,163.57,163.53,0.04035211]
[1748609267071,6.1126,163.55,163.53,6.15345211]
[1748609267273,6.1126,163.55,163.53,0.04035211]
[1748609267974,6.1124,163.56,163.53,6.15345211]
[1748609268565,2.0543,163.57,163.53,6.15345211]
[1748609268566,6.1127,163.55,163.53,6.15345211]
[1748609269477,6.1127,163.55,163.53,0.04035211]
[1748609269673,6.113,163.54,163.53,0.04035211]
[1748609270767,2.0543,163.57,163.53,0.04035211]
[1748609271083,2.0543,163.57,163.34,61.73869205]
[1748609271084,6.7656266,163.56,163.46,221.46338323]
[1748609271468,18.9902266,163.56,163.46,215.34768323]
[1748609271773,6.7656266,163.53,163.39,40.7456266]
[1748609271981,0.04062843,163.48,163.44,0.04691552]
[1748609272281,6.1161,163.46,163.44,0.04691552]
[1748609273970,0.04062843,163.48,163.44,0.04691552]
[1748609274577,6.1162,163.46,163.44,0.04691552]
[1748609275977,0.04062843,163.48,163.44,0.04691552]
[1748609276681,6.1157,163.47,163.44,6.16341552]
[1748609277075,0.04062843,163.48,163.44,0.04691552]
[1748609277280,34.02062843,163.48,163.44,0.04691552]
[1748609277487,2.0881,163.47,163.44,0.04691552]
[1748609277689,6.1164,163.45,163.44,0.04691552]
[1748609278483,6.1162,163.46,163.44,0.04691552]
[1748609279083,8.2039,163.47,163.44,6.16351552]
[1748609279291,0.04062843,163.48,163.44,0.04691552]
[1748609279889,6.15612843,163.48,163.45,6.1162]
[1748609280086,6.15612843,163.48,163.44,0.04691552]
[1748609280387,0.04062843,163.48,163.46,6.1159]
[1748609280587,0.04062843,163.48,163.44,0.04691552]
[1748609281386,0.04062843,163.48,163.47,6.1156]
[1748609282285,18.35,163.67,163.47,33.98]
[1748609282492,18.35,163.67,163.48,6.7656266]
[1748609282493,6.1442,163.58,163.48,6.7656266]
[1748609282888,6.1442,163.58,163.48,6.115]
[1748609282889,6.1144,163.51,163.48,6.115]
[1748609283086,6.1144,163.51,163.47,123.88]
[1748609283291,6.1144,163.51,163.47,123.92306299]
[1748609284089,6.1144,163.51,163.49,6.1149]
[1748609284589,6.1139,163.52,163.49,6.1149]
[1748609284994,6.1135,163.53,163.5,6.1144]
[1748609285192,6.1135,163.53,163.5,0.03982848]
[1748609285688,6.1135,163.53,163.5,6.15422848]
[1748609285888,33.98,163.54,163.5,0.03982848]
[1748609286796,6.1442,163.58,163.51,6.1141]
[1748609287091,33.88,163.57,163.5,0.03982848]
[1748609287990,6.1139,163.52,163.5,0.03982848]
[1748609288690,6.1135,163.53,163.5,6.15432848]
[1748609289087,33.88,163.57,163.5,0.03982848]
[1748609289892,6.1136,163.53,163.5,6.15422848]
[1748609290092,33.88,163.57,163.5,0.03982848]
[1748609290593,6.1133,163.54,163.51,6.1139]
[1748609291202,6.1135,163.53,163.5,6.15412848]
[1748609292394,6.114,163.52,163.5,0.03982848]
[1748609292594,33.88,163.57,163.5,0.03982848]
[1748609293095,6.1134,163.53,163.5,6.15412848]
[1748609293497,6.1139,163.52,163.5,6.15412848]
[1748609293888,33.88,163.57,163.5,6.15412848]
[1748609294087,6.1136,163.53,163.5,6.15412848]
[1748609294591,33.88,163.57,163.5,6.15412848]
[1748609294792,6.114,163.52,163.5,0.03982848]
[1748609295097,33.88,163.57,163.5,0.03982848]
[1748609295799,33.88,163.57,163.51,6.1139]
[1748609295997,33.88,163.57,163.5,0.03982848]
[1748609296699,6.1442,163.58,163.5,0.03982848]
[1748609296897,6.1129,163.55,163.52,6.1135]
[1748609297097,6.1129,163.55,163.52,0.03976215]
[1748609297492,6.1442,163.58,163.52,0.03976215]
[1748609297695,40.0042,163.58,163.52,0.03976215]
[1748609297900,35.9939,163.58,163.52,0.03976215]
[1748609298212,42.1056,163.58,163.52,0.03976215]
[1748609298402,8.2456,163.58,163.52,0.03976215]
[1748609298598,2.1339,163.58,163.52,0.03976215]
[1748609299095,6.1115,163.59,163.52,0.03976215]
[1748609299301,6.1117,163.58,163.52,0.03976215]
[1748609299499,33.86,163.61,163.52,0.03976215]
[1748609300699,6.1117,163.58,163.55,6.1126]
[1748609301002,33.86,163.6,163.55,0.04584646]
[1748609301203,3.9946,163.63,163.55,0.04584646]
[1748609301405,33.86,163.62,163.55,0.04584646]
[1748609302106,40.6256266,163.62,163.49,6.7656266]
[1748609303002,6.1125,163.56,163.53,6.1132]
[1748609303300,0.04532171,163.56,163.53,0.04665516]
[1748609304904,0.04532171,163.56,163.55,6.1127]
[1748609305995,0.04532171,163.56,163.54,6.1129]
[1748609306804,0.04532171,163.56,163.53,0.04665516]
[1748609307500,0.04532171,163.56,163.55,6.1127]
[1748609309004,0.04532171,163.56,163.54,6.1129]
[1748609309303,0.04532171,163.56,163.53,0.04665516]
[1748609309606,0.04532171,163.56,163.55,6.1127]
[1748609310207,0.04532171,163.56,163.53,0.04665516]
[1748609310708,6.1127,163.55,163.53,0.04665516]
[1748609311207,6.15772171,163.56,163.53,6.15995516]
[1748609311809,0.04532171,163.56,163.53,0.04665516]
[1748609312309,0.04532171,163.56,163.54,6.113]
[1748609314410,0.04532171,163.56,163.55,6.1127]
[1748609314610,0.04532171,163.56,163.53,0.04665516]
[1748609315007,0.04532171,163.56,163.54,6.1127]
[1748609315808,6.15762171,163.56,163.54,6.1127]
[1748609316008,0.04532171,163.56,163.54,6.1127]
[1748609316811,0.04532171,163.56,163.55,6.1127]
[1748609321217,0.04532171,163.56,163.54,6.1128]
[1748609322012,0.04532171,163.56,163.53,33.78665516]
[1748609322013,0.04532171,163.56,163.55,6.1127]
[1748609322209,0.04532171,163.56,163.53,33.78665516]
[1748609322619,0.04532171,163.56,163.54,6.1128]
[1748609322821,0.04532171,163.56,163.53,33.78665516]
[1748609323322,0.04532171,163.56,163.55,6.1127]
[1748609325518,0.04532171,163.56,163.53,33.78665516]
[1748609325819,0.04532171,163.56,163.53,157.34665516]
[1748609326021,6.15782171,163.56,163.53,129.71975516]
[1748609326419,0.04532171,163.56,163.53,123.60665516]
[1748609327129,0.04532171,163.56,163.54,6.1128]
[1748609327921,0.04532171,163.56,163.55,6.1127]
[1748609330628,6.1105,163.61,163.58,6.1113]
[1748609330826,6.1105,163.61,163.54,40.5056266]
[1748609331333,6.1105,163.61,163.59,6.1111]
[1748609331724,6.1105,163.61,163.58,6.15600478]
[1748609332130,6.1108,163.6,163.58,6.15600478]
[1748609334432,33.74,163.64,163.59,6.111]
[1748609334433,6.1102,163.62,163.59,6.111]
[1748609334634,6.1102,163.62,163.58,0.04460478]
[1748609334931,6.1105,163.61,163.59,6.1111]
[1748609335435,33.74,163.64,163.59,6.1111]
[1748609335436,6.1103,163.62,163.59,6.1111]
[1748609336137,6.1103,163.62,163.6,6.1108]
[1748609337938,6.1098,163.63,163.61,6.1104]
[1748609338138,6.1098,163.63,163.58,0.04460478]
[1748609338538,6.1098,163.63,163.6,6.1106]
[1748609338744,6.1098,163.63,163.58,0.04460478]
[1748609339134,2.0952,163.65,163.58,0.04460478]
[1748609339442,2.0952,163.65,163.59,6.7656266]
[1748609339646,6.1097,163.64,163.61,6.1102]
[1748609339942,6.1097,163.64,163.61,6.15208747]
[1748609340140,6.1098,163.63,163.61,6.15208747]
[1748609340334,6.1098,163.63,163.61,0.04188747]
[1748609340539,2.0952,163.65,163.61,0.04188747]
[1748609340842,6.1095,163.64,163.61,6.15208747]
[1748609341739,2.0952,163.65,163.61,0.04188747]
[1748609342344,6.11,163.62,163.61,0.04188747]
[1748609343442,6.1114,163.59,163.55,33.74]
[1748609343654,2.0952,163.65,163.55,33.74]
[1748609343655,33.74,163.63,163.55,33.74]
[1748609343844,33.74,163.63,163.56,6.1121]
[1748609344146,6.1114,163.59,163.55,157.16]
[1748609344335,33.74,163.63,163.55,157.16]
[1748609344537,0.04241222,163.61,163.59,6.1109]
[1748609345750,0.04241222,163.61,163.6,6.1108]
[1748609347840,0.04241222,163.61,163.59,6.111]
[1748609348443,0.04241222,163.61,163.58,6.1114]
[1748609348648,0.04241222,163.61,163.57,123.44594493]
[1748609348849,6.1114,163.59,163.57,0.04594493]
[1748609349545,6.1108,163.6,163.57,6.15744493]
[1748609351046,6.1108,163.6,163.58,6.1115]
[1748609351247,6.1108,163.6,163.57,0.04594493]
[1748609351449,0.04241222,163.61,163.57,0.04594493]
[1748609351952,6.15291222,163.61,163.57,0.04594493]
[1748609352155,6.15291222,163.61,163.57,123.42594493]
[1748609352749,6.15291222,163.61,163.58,6.1115]
[1748609353548,0.04241222,163.61,163.57,123.42594493]
[1748609354049,0.04241222,163.61,163.6,6.1108]
[1748609355657,1.951,163.68,163.59,33.62]
[1748609355954,1.951,163.68,163.61,6.7656266]
[1748609356158,35.7349,163.69,163.61,6.7656266]
[1748609356555,6.1084,163.67,163.64,6.1092]
[1748609357155,6.1087,163.66,163.64,6.1092]
[1748609357355,6.1087,163.66,163.63,6.15126093]
[1748609357954,6.1087,163.66,163.64,6.1092]
[1748609358255,6.1084,163.67,163.64,6.1092]
[1748609358657,6.1084,163.67,163.65,6.1088]
[1748609358860,6.1084,163.67,163.63,0.04176093]
[1748609359261,6.1084,163.67,163.65,6.1089]
[1748609359559,6.1086,163.66,163.63,0.04176093]
[1748609359861,35.7349,163.69,163.64,6.1091]
[1748609360156,6.1084,163.67,163.63,0.04176093]
[1748609360357,35.7349,163.69,163.64,6.1089]
[1748609360550,35.7349,163.69,163.63,0.04176093]
[1748609361360,35.7349,163.69,163.64,6.1091]
[1748609361749,6.1084,163.67,163.63,0.04176093]
[1748609361950,6.1084,163.67,163.64,6.1092]
[1748609363059,6.1084,163.67,163.65,6.1089]
[1748609363460,6.1084,163.67,163.64,6.1091]
[1748609363851,35.7349,163.69,163.63,0.04176093]
[1748609364659,35.7349,163.69,163.41,114.83265281]
[1748609364660,42.5005266,163.69,163.56,33.62]
[1748609364864,6.1106,163.61,163.56,33.62]
[1748609365066,6.1106,163.61,163.59,6.1111]
[1748609365366,6.1101,163.62,163.56,33.62]
[1748609365765,0.04176093,163.61,163.57,0.04102111]
[1748609365959,0.04176093,163.61,163.59,6.1109]
[1748609367357,0.04176093,163.61,163.6,6.1108]
[1748609370960,0.04176093,163.61,163.59,6.1111]
[1748609372162,6.15246093,163.61,163.57,0.04102111]
[1748609372762,6.15246093,163.61,163.58,6.1113]
[1748609372966,6.111,163.6,163.57,0.04102111]
[1748609373272,6.111,163.6,163.57,6.15282111]
[1748609373771,0.04176093,163.61,163.57,6.15282111]
[1748609374070,6.111,163.6,163.57,6.15282111]
[1748609374272,0.04176093,163.61,163.57,0.04102111]
[1748609374469,0.04176093,163.61,163.58,6.7656266]
[1748609374766,33.62,163.68,163.63,6.1094]
[1748609374967,33.62,163.68,163.58,8.8915266]
[1748609375166,6.1095,163.64,163.58,8.8915266]
[1748609375470,6.1095,163.64,163.61,6.1102]
[1748609375666,6.1095,163.64,163.58,8.8915266]
[1748609375869,6.1092,163.65,163.62,6.1097]
[1748609376070,6.1092,163.65,163.62,0.03923191]
[1748609376265,6.1087,163.66,163.62,0.03923191]